Cogmind - Beta 16.1 @@@ ROGUE MODE // 2026.02.25 @ 17:32:17 Player: gamerman Result: Destroyed by XM-YNI(j) with Overtuned Pulse Rifle Performance ------------- Evolutions (0) 0 Regions Visited (3) 600 Robots Destroyed (10) 50 Value Destroyed (341) 341 Prototype IDs (15) 300 Alien Tech Used (0) 0 Bonus (800) 800 TOTAL SCORE: 2091 Bonus ------- Registered with UFD 300 Met Optimus in HQ 500 Cogmind --------- Core Integrity 0/250 Matter 300/300 Energy 290/290 System Corruption 0% Temperature Cool (12) Movement Hovering (116) Ox1 Location -7/Scraptown Parts ------- > --- POWER (1) -------- Improved Deuterium Engine > --- PROPULSION (2) --- Improved Hover Unit Improved Hover Unit > --- UTILITY (2) ------ Scrap Suit > --- WEAPON (2) ------- Compact Gauss Rifle Companion Sword > --- INVENTORY (5) ---- Nuclear Pulse Thruster Junk Cannon (0) Peak State ------------ > --- POWER ------------ Light Angular Momentum Engine > --- PROPULSION ------- Armored Treads Overtuned Scrapsphere > --- UTILITY ---------- Scrap Suit > --- WEAPON ----------- Junk Cannon > --- INVENTORY -------- Triangulator Hardened Heavy Armor Plating Hacking Suite Plasma Cannon [Rating: 33] Favorites ----------- Power Light Angular Momentum Engine Engine Light Angular Momentum Engine Propulsion Light Treads Treads Light Treads Wheel Overtuned Scrapsphere Hover Unit Improved Hover Unit Utility Small Storage Unit Device Scrap Suit Storage Small Storage Unit Protection Makeshift Light Armor Plating Weapon Heavy Battle Rifle Energy Gun EM Pulse Gun Ballistic Gun Heavy Battle Rifle Ballistic Cannon Magnetic Acceleration Cannon Special Weapon Junk Cannon Slashing Weapon Companion Sword Build | -11 -10 -10 -7 ------- Run | Yrd Mat Sub Scr Slots Evolved . | . . . . Power . | . . . . Propulsion . | . . . . Utility . | . . . . Weapon . | . . . . Parts Attached 28 | 6 2 1 19 Power 5 | 1 . 1 3 Engine 5 | 1 . 1 3 Core . | . . . . Reactor . | . . . . Propulsion 10 | 2 . . 8 Treads 7 | 2 . . 5 Leg . | . . . . Wheel 1 | . . . 1 Hover 2 | . . . 2 Flight . | . . . . Utility 5 | 1 1 . 3 Device 2 | . . . 2 Storage 1 | 1 . . . Processor . | . . . . Hackware . | . . . . Protection 2 | . 1 . 1 Artifact . | . . . . Weapon 8 | 2 1 . 5 Energy Gun 3 | 2 1 . . Energy Cannon . | . . . . Ballistic Gun 2 | . . . 2 Ballistic Cannon 1 | . . . 1 Launcher . | . . . . Special Weapon 1 | . . . 1 Impact Weapon . | . . . . Slashing Weapon 1 | . . . 1 Piercing Weapon . | . . . . Special Melee Weapon . | . . . . Unidentified Prototypes 3 | . . . 3 Parts Lost 5 | . 2 . 3 Power 2 | . 1 . 1 Propulsion 1 | . . . 1 Utility . | . . . . Weapon 2 | . 1 . 1 Highest Loss Streak 2 | . 2 . 2 To Critical Strikes . | . . . . Average Backups 4 | 1 4 4 4 Power . | . 1 . . Propulsion . | . . . . Utility 1 | . 1 1 1 Weapon 1 | . . 1 1 Tool/Special . | . . . . Unused Backups 16 | . . 5 11 Power 2 | . . . 2 Propulsion 2 | . . 1 1 Utility 5 | . . 1 4 Weapon 7 | . . 3 4 Tool/Special . | . . . . Average Slot Usage (%) 84 | . 89 100 82 Engine 12 | . 8 14 13 Treads 18 | . 28 28 16 Wheel 6 | . . . 7 Device 3 | . . . 3 Storage 10 | . 14 14 9 Protection 10 | . 9 14 9 Energy Gun 4 | . 28 28 . Ballistic Gun 7 | . . . 8 Ballistic Cannon 4 | . . . 5 Special Weapon 2 | . . . 3 Slashing Weapon 1 | . . . 1 Peak Build Rating 33 | 6 7 8 33 Average Rating 19 | 4 6 7 21 On Entrance 5 | . 6 6 8 Avg Prop Armor Cover (%) 8 | . . . 8 Naked Turns . | . . . . Heaviest Build 32 | 12 13 12 32 Greatest Support 40 | 40 40 40 40 Greatest Overweight (x) 9 | . . . 9 Average Overweight (x) . | . . . 1 Largest Inventory Capacity 8 | 8 8 8 8 Average Capacity 7 | 6 8 8 7 Most Carried 8 | 2 5 8 8 Average Carried 6 | 1 4 6 6 Final Capacity 8 | 8 8 8 5 Final Carried 8 | 2 5 8 3 Scrap Suit Usage (%) 22 | . . . 27 Parts Cannibalized 1 | . . . 1 Class Distribution -------------------- 77% | Mutant 21% | Scrapper Dominant Class ---------------- Mutant | -10/Materials Mutant | -10/Subcaves Mutant | -7/Scraptown Resources | -11 -10 -10 -7 ----------- Run | Yrd Mat Sub Scr Matter Collected 560 | 245 35 10 270 Remotely . | . . . . Salvage Created 510 | . 134 . 376 Parts 21 | . 10 . 11 Haulers Intercepted . | . . . . Recyclers Shooed 1 | . 1 . . Parts Field Recycled . | . . . . Retrieved Matter . | . . . . Parts Self-Destructed 8 | . . 8 . Prevented . | . . . . Parts Restored . | . . . . Kills | -11 -10 -10 -7 ------- Run | Yrd Mat Sub Scr Combat Hostiles Destroyed 8 | . 2 . 6 Guns 3 | . 2 . 1 Cannons 3 | . . . 3 Classes Destroyed 8 | . 2 . 6 Builder 1 | . 1 . . Turret 1 | . . . 1 Grunt 2 | . 2 . . Bolteater 1 | . . . 1 Federalist 1 | . . . 1 Explorer 1 | . . . 1 Ranger 1 | . . . 1 Scrapper 2 | . . . 2 Best Kill Streak 2 | . 1 . 2 Combat Bots Only 2 | . 1 . 2 Max Kills in Single Turn 1 | . 1 . 1 Gunslinging . | . . . . Exploded . | . . . . Melee . | . . . . Uniques/NPCs Destroyed . | . . . . Combat | -11 -10 -10 -7 -------- Run | Yrd Mat Sub Scr Hostile Shots Fired 131 | . 14 . 117 Missed 30 | . 4 . 26 Hits 101 | . 10 . 91 Melee 4 | . . . 4 Projectile 97 | . 10 . 87 Critical Strikes 4 | . 1 . 3 Damage Taken 1481 | . 142 . 1339 Core 261 | . . . 261 Absorbed by Shields . | . . . . Redirected to Shielding 17 | . 17 . . Regen/Repaired (Parts) 9 | . . . 9 Core Remaining (%) 100 | 100 . . . Volleys Fired 50 | . 20 . 30 Largest 2 | . 2 . 1 Hottest 80 | . 80 . 33 Shots Fired 68 | . 38 . 30 Gun 50 | . 38 . 12 Cannon . | . . . . Launcher . | . . . . Special 18 | . . . 18 Kinetic 12 | . . . 12 Thermal 1 | . 1 . . Explosive . | . . . . Electromagnetic 37 | . 37 . . Impact 18 | . . . 18 Robot Hit Streak 7 | . 5 . 7 Robot Miss Streak 7 | . 7 . 2 Penetration Max . | . . . . Secondary Targets . | . . . . Shots Hit Robots 33 | . 17 . 16 Core Hits 11 | . 6 . 5 Critical Kills . | . . . . Critical Parts Destroyed 2 | . . . 2 Critical Strikes 4 | . 2 . 2 Corrupt 2 | . 2 . . Smash 2 | . . . 2 Melee Attacks 4 | . . . 4 Impact . | . . . . Slashing 4 | . . . 4 Piercing . | . . . . Sneak Attacks . | . . . . Combat Hostiles . | . . . . Follow-up Attacks . | . . . . Damage Inflicted 983 | . 271 . 712 Guns 349 | . 270 . 79 Cannons . | . . . . Explosions . | . . . . Melee . | . . . . Ramming 1 | . 1 . . Kinetic 79 | . . . 79 Thermal 12 | . 12 . . Explosive . | . . . . Electromagnetic 258 | . 258 . . Impact 633 | . . . 633 Slashing . | . . . . Piercing . | . . . . Highest Corruption . | . . . . Average Corruption . | . . . . Corruption Purged . | . . . . Corruption Blocked . | . . . . Overload Shots . | . . . . Overflow Damage 190 | . . . 190 Projectiles 190 | . . . 190 Explosions . | . . . . Melee . | . . . . Knockbacks 5 | . . . 5 Impact 5 | . . . 5 Kinetic . | . . . . Secondary . | . . . . Self-Inflicted Damage . | . . . . Shots . | . . . . Rammed 1 | . 1 . . Targets Rammed 1 | . 1 . . Kicked . | . . . . Crushed . | . . . . Highest Temperature 134 | . 134 . 22 Average Temperature 48 | . 56 . 11 Received Heat Transfer 894 | . 99 . 795 Siege Activations . | . . . . Martial Activations . | . . . . Shielding Activations . | . . . . Robots Disrupted . | . . . . Combat Hostiles . | . . . . Robots Corrupted 2 | . . . 2 Combat Hostiles 2 | . . . 2 Parts Fried 1 | . . . 1 Impact Corruptions 6 | . . . 6 Robots Melted . | . . . . Combat Hostiles . | . . . . Parts Melted . | . . . . Heat Transferred 25 | . 25 . . Parts Sabotaged . | . . . . Parts Stolen . | . . . . Parts Stripped . | . . . . Power Chain Reactions . | . . . . Alert | -11 -10 -10 -7 ------- Run | Yrd Mat Sub Scr Maximum Alert Level . | . . . . Low Security (%) 100 | 100 100 . . Level 1 . | . . . . Level 2 . | . . . . Level 3 . | . . . . Level 4 . | . . . . Level 5 . | . . . . High Security . | . . . . Max Security . | . . . . Peak Influence 35 | . 35 . . Initial . | . . . . Average 5 | . 6 . . Influence Increases 100 | . 100 . . Destroy 0b10 Robot/C 40 | . 40 . . Destroy 0b10 Robot/NC 5 | . 5 . . Destroy Leader 10 | . 10 . . Lose Combat Pursuer 45 | . 45 . . Influence Decreases 100 | . 100 . . Time Decay 80 | . 80 . . Lost Part 20 | . 20 . . Squads Dispatched . | . . . . Investigation . | . . . . Extermination . | . . . . Reinforcement . | . . . . Assault . | . . . . Garrison . | . . . . Intercept . | . . . . Searches Triggered . | . . . . Construction Impeded . | . . . . Haulers Reinforced . | . . . . Active Scanning Responses . | . . . . Cargo Convoy Interrupts . | . . . . Stealth | -11 -10 -10 -7 --------- Run | Yrd Mat Sub Scr Distress Signals 2 | . 2 . . Communications Jammed . | . . . . Distress Signals . | . . . . Times Spotted 36 | . 9 . 27 Peak Tracking Total 8 | . 5 . 8 Tactical Retreats 5 | . 3 . 2 Traps | -11 -10 -10 -7 ------- Run | Yrd Mat Sub Scr Traps Triggered . | . . . . Indirectly . | . . . . Trap Hack Attempts . | . . . . Triggered . | . . . . Disarmed . | . . . . Reprogrammed . | . . . . Reused . | . . . . Traps Extracted . | . . . . Installed 1 | . . . 1 Triggered . | . . . . Machines | -11 -10 -10 -7 ---------- Run | Yrd Mat Sub Scr Machines Disabled 4 | . . . 4 Max in Single Turn 1 | . . . 1 Machines Repaired . | . . . . Machines Dismantled . | . . . . Machines Sabotaged . | . . . . Overloaded Fab Kills . | . . . . Hacking | -11 -10 -10 -7 --------- Run | Yrd Mat Sub Scr Machines Accessed 14 | . 1 1 12 Terminals 1 | . 1 . . Fabricators . | . . . . Repair Stations . | . . . . Recycling Units . | . . . . Scanalyzers . | . . . . Garrison Access . | . . . . Total Hacks 90 | . 4 4 82 Successful 86 | . . 4 82 Failed 4 | . 4 . . Catastrophic 1 | . 1 . . Database Lockouts . | . . . . Manual 8 | . 4 1 3 Terminals 4 | . 4 . . Fabricators . | . . . . Repair Stations . | . . . . Recycling Units . | . . . . Scanalyzers . | . . . . Garrison Access . | . . . . Terminal Hacks 86 | . . 4 82 Record 79 | . . 4 75 Robot Analysis 5 | . . . 5 Open Door 1 | . . . 1 Proto ID Catalog 1 | . . . 1 Fabricator Hacks . | . . . . Repair Station Hacks . | . . . . Recycling Unit Hacks . | . . . . Scanalyzer . | . . . . Garrison Access Hacks . | . . . . Unauthorized Hacks . | . . . . Terminals . | . . . . Fabricators . | . . . . Repair Stations . | . . . . Recycling Units . | . . . . Scanalyzers . | . . . . Garrison Access . | . . . . Data Cores Recovered . | . . . . Used . | . . . . Hacking Detections 1 | . 1 . . Full Trace Events . | . . . . Feedback Events . | . . . . Feedback Blocked . | . . . . Robot Schematics Acquired . | . . . . Robots Built . | . . . . Authchips . | . . . . Time . | . . . . Total Robot Build Rating . | . . . . Part Schematics Acquired . | . . . . Parts Built . | . . . . Authchips . | . . . . Time . | . . . . Total Part Build Rating . | . . . . Part Studies Acquired . | . . . . Parts Repaired . | . . . . Time . | . . . . Parts Recycled . | . . . . Recycled Matter . | . . . . Retrieved Matter . | . . . . Retrieved Components . | . . . . Parts Scanalyzed . | . . . . Part Schematics Acquired . | . . . . Parts Damaged . | . . . . Bothacking | -11 -10 -10 -7 ------------ Run | Yrd Mat Sub Scr Used RIF Installer . | . . . . Robots Hacked . | . . . . Non-combat . | . . . . Combat . | . . . . Robot Hacks Applied . | . . . . Relay Couplers Released . | . . . . Fabnet Peak Effective % . | . . . . Robots Rewired . | . . . . Allies Hacked . | . . . . Hacks Repelled . | . . . . Allies | -11 -10 -10 -7 -------- Run | Yrd Mat Sub Scr Total Allies . | . . . . Largest Group . | . . . . Highest-Rated Group . | . . . . Highest-Rated Ally . | . . . . Total Orders . | . . . . Ally Attacks . | . . . . Total Damage . | . . . . Kills . | . . . . Allies Corrupted . | . . . . Allies Melted 8 | . . . 8 Intel | -11 -10 -10 -7 ------- Run | Yrd Mat Sub Scr Active Infowar (turns) . | . . . . Robot Analysis Total 5 | . . . 5 Derelict Logs Recovered 2 | . . 1 1 Drone Launches . | . . . . Drone Recoveries . | . . . . Exploration | -11 -10 -10 -7 ------------- Run | Yrd Mat Sub Scr Turns Passed 4299 | 80 417 241 3561 Spaces Moved 2583 | 46 217 137 2183 Core 99 | 3 . . 96 Treads 1718 | 43 217 137 1321 Legs . | . . . . Wheels 679 | . . . 679 Hover 87 | . . . 87 Flight . | . . . . Fastest Speed 50 | 50 160 160 60 Average Speed 155 | 152 160 160 154 Slowest Speed 500 | 160 160 160 500 Overloaded Moves . | . . . . Propulsion Burnouts . | . . . . Robots Hopped . | . . . . Potential Cave-ins . | . . . . Cave-ins Triggered . | . . . . Exploration Rate (%) 33 | 4 24 13 94 Regions Visited 3 Branch Regions 2 Pre-discovered Areas 6 | . . . 6 Known Exits Taken . | . . . . Unknown Exits Taken 3 | 1 1 1 . Scrap Searched 8 | . . 2 6 Spaces Dug 3 | . . . 3 Terrain Destroyed 6 | . . . 6 Melee 3 | . . . 3 Projectile 3 | . . . 3 AOE . | . . . . Terrain Rammed . | . . . . Walls Destroyed . | . . . . Machines Disabled . | . . . . Actions | -11 -10 -10 -7 --------- Run | Yrd Mat Sub Scr Total 2806 | 53 248 161 2344 Wait 69 | . 5 10 54 Move 2580 | 45 216 136 2183 Hop . | . . . . Pick Up 26 | 2 4 9 11 Fast Attach 23 | 6 1 . 16 Attach 8 | . 1 1 6 Detach 3 | . . . 3 Swap 1 | . . . 1 Drop 40 | . . 5 35 Fire 50 | . 20 . 30 Melee 4 | . . . 4 Ram . | . . . . Kick . | . . . . Crush 1 | . 1 . . Escape Stasis . | . . . . Rewire . | . . . . Trap 1 | . . . 1 Miscellaneous . | . . . . Route ------- -11/Scrapyard -10/Materials -10/Subcaves (discovered 2 exits: [*Mat] / *Scr) -7/Scraptown (discovered 2 exits: *Fac x2) History --------- Turn | Location | Event 8 | -11/Scrapyard | Discovered new exit (range 15) 81 | -11/Scrapyard | Entered Materials 82 | -10/Materials | Met a group of wandering Federalists 133 | -10/Materials | Discovered new exit (range 6) 306 | -10/Materials | Build established: Mutant 498 | -10/Materials | Entered Subcaves 499 | -10/Subcaves | Continued accompanying wandering Federalists (5) 522 | -10/Subcaves | Discovered new exit (range 14) 533 | -10/Subcaves | Visited Clippyterm 538 | -10/Subcaves | Learned Factory emergency access door positions 538 | -10/Subcaves | Learned Factory stockpile data 649 | -10/Subcaves | Learned 4 Materials zone layouts 721 | -10/Subcaves | Wandering Federalist uncovered a shortcut to Scraptown 739 | -10/Subcaves | Entered Scraptown 1120 | -7/Scraptown | Visited Spacefarers 1808 | -7/Scraptown | Discovered new exit (range 5) 1936 | -7/Scraptown | Scanned Subdweller tech in exchange for log data 1939 | -7/Scraptown | Learned Research garrison access intel 2055 | -7/Scraptown | Visited Cyclists 2123 | -7/Scraptown | Visited Awakened 2209 | -7/Scraptown | Visited Red Mages 2375 | -7/Scraptown | Visited UFD Registry 2375 | -7/Scraptown | Registered with UFD as "Hellpod" 2406 | -7/Scraptown | Visited Fellowship of the Rings 2468 | -7/Scraptown | Visited Comm Corps 2629 | -7/Scraptown | Entered Cyclist Reading Room 2648 | -7/Scraptown | Learned location of Zion (-7) 3112 | -7/Scraptown | Visited Junk Cannon Lab 3130 | -7/Scraptown | Found Prototype Special Weapon 3130 | -7/Scraptown | Identified Junk Cannon 3203 | -7/Scraptown | Visited Scrap Suit Storage 3226 | -7/Scraptown | Found Scrap Suit 3268 | -7/Scraptown | Visited Science Guys 3294 | -7/Scraptown | Warned about trapping Scraptown 3519 | -7/Scraptown | Visited Infowarlord's Domain 3523 | -7/Scraptown | Build established: Scrapper 3548 | -7/Scraptown | Visited Analyses Database 3582 | -7/Scraptown | Met Optimus 3582 | -7/Scraptown | Accepted into 0bPrime 3670 | -7/Scraptown | Visited Junk Repository 3696 | -7/Scraptown | Civil war broke out across Scraptown 3716 | -7/Scraptown | Visited Curators Association 3765 | -7/Scraptown | Lost 7 allies 3782 | -7/Scraptown | Identified exit to Factory 3785 | -7/Scraptown | Visited Sword Containment 3794 | -7/Scraptown | Found Prototype Slashing Weapon 3794 | -7/Scraptown | Identified Companion Sword 3839 | -7/Scraptown | Lost 3 allies 3871 | -7/Scraptown | Visited Scrapoid Pod Storage 3913 | -7/Scraptown | Core integrity fell below 50% 3913 | -7/Scraptown | Visited Cartography Club 3923 | -7/Scraptown | Learned 16 Factory zone layouts 3923 | -7/Scraptown | Learned 20 Factory zone layouts 3923 | -7/Scraptown | Learned 24 Factory zone layouts 3923 | -7/Scraptown | Learned 4 Mines zone layouts 3923 | -7/Scraptown | Learned 8 Lower Caves zone layouts 3923 | -7/Scraptown | Learned 20 Lower Caves zone layouts 3923 | -7/Scraptown | Learned 16 Upper Caves zone layouts 3923 | -7/Scraptown | Learned 8 Proximity Caves zone layouts 3923 | -7/Scraptown | Learned 20 Proximity Caves zone layouts 3923 | -7/Scraptown | Learned location of 2 exits from Factory 3923 | -7/Scraptown | Learned location of 1 exit from Lower Caves 4013 | -7/Scraptown | Lost 5 allies 4098 | -7/Scraptown | Core integrity fell below 20% 4110 | -7/Scraptown | Found Scrap Suit 4135 | -7/Scraptown | Found Junk Cannon 4168 | -7/Scraptown | Lost 4 allies 4300 | -7/Scraptown | Destroyed by XM-YNI(j) with Overtuned Pulse Rifle Last Messages --------------- 04192_ Dropped Ovr. Treads. 04192_ Acquired Imp. Hover Unit. 04194_ Dropped Ovr. Treads. 04194_ Acquired 10 matter. 04196_ Acquired Imp. Hover Unit. 04201_ KI-THB(g) switches sides: "Sorry, the bolts are shinier on the other side!" 04201_ Acquired 30 matter. 04209_ Scrap Suit secures Ovr. Barrage Gun. 04210_ Dropped Ovr. Barrage Gun. 04211_ Scrap Suit secures Hvy. Battle Rifle. 04229_ SI-4OK(p) suffers critical hit (Burn). 04230_ SI-4OK(p) overheating. 04241_ Acquired Nuclear Pulse Thruster. 04264_ Dropped Hvy. Battle Rifle. 04264_ Acquired Prototype Ballistic Gun. 04264_ Identified Com. Gauss Rifle. 04269_ Acquired 10 matter. 04285_ SG-ZVU(j): "I knew Optimus was a traitor." Map ----- +----------------------------------------------------+ | | | | | | | | | | | | | | | | | | | ?????????????????????????????????????????????????? | | ?????????????????????????????????????????????????? | | ?????????????????????????????????????????????????? | | ?????????????????????????????????????????????????? | | ?????????????????????????????????????????????????? | | ?????????????????????????????????????????????????? | | ?????????????????????????????????????????????????? | | ?????????????????????????????????????????????????? | | ?????????????????????????????????????????????????? | | ?????????????????????????????????????????????????? | | ?????????????????????????????????????????????????? | | ?????????????????????????????????????????????????? | | ?????????????????????????????????????????????????? | | ##########??###???####???????????????????????????? | | #"""##""|##"""#??##=[##??????